bitfinex-derivatives/quotes_BTCF0:USTF0_20250508
["timestamp","ask_amount","ask_price","bid_price","bid_amount"]
[1746672756057,0.4667,98825.0,98824.0,0.2938798]
[1746672756261,0.2987,98825.0,98824.0,0.2938798]
[1746672756656,0.2987,98825.0,98824.0,0.2928798]
[1746672756856,0.2987,98825.0,98824.0,0.2938798]
[1746672757659,0.147,98825.0,98824.0,0.2938798]
[1746672758855,0.2933,98825.0,98824.0,0.2938798]
[1746672760464,0.2933,98825.0,98824.0,0.09151]
[1746672761165,0.4956678,98825.0,98824.0,0.09151]
[1746672761362,0.2933,98825.0,98824.0,0.09151]
[1746672761562,0.4956678,98825.0,98824.0,0.09151]
[1746672761866,0.4956678,98825.0,98824.0,0.09051]
[1746672762063,0.4956678,98825.0,98824.0,0.09151]
[1746672762370,0.6636678,98825.0,98824.0,0.09151]
[1746672762867,0.6636678,98825.0,98824.0,0.09051]
[1746672763164,0.6636678,98825.0,98824.0,0.09151]
[1746672763468,0.4613,98825.0,98824.0,0.09151]
[1746672764165,0.4613,98825.0,98824.0,0.2928798]
[1746672764461,0.4613,98825.0,98824.0,0.2033698]
[1746672764857,0.4613,98825.0,98824.0,0.2023698]
[1746672766470,0.4613,98825.0,98824.0,0.2043698]
[1746672766871,0.4613,98825.0,98824.0,0.2063698]
[1746672767470,0.4613,98825.0,98824.0,0.2053698]
[1746672772376,0.2933,98825.0,98824.0,0.3253698]
[1746672772574,0.2933,98825.0,98824.0,0.4834698]
[1746672772764,0.147,98825.0,98824.0,0.8442698]
[1746672773171,0.147,98825.0,98824.0,1.0122698]
[1746672773377,0.147,98825.0,98824.0,0.9717698]
[1746672775368,0.0015,98825.0,98824.0,0.9312698]
[1746672776376,0.0015,98825.0,98824.0,0.8099]
[1746672776575,0.0015,98825.0,98824.0,1.0122698]
[1746672777382,0.0015,98825.0,98824.0,1.1792698]
[1746672778272,0.0015,98825.0,98824.0,1.1387798]
[1746672780469,0.1599,98825.0,98824.0,1.1387798]
[1746672782173,0.1599,98825.0,98824.0,0.9707798]
[1746672783180,0.1599,98825.0,98824.0,1.1387798]
[1746672784880,0.1599,98825.0,98824.0,0.8887798]
[1746672785067,0.1599,98825.0,98824.0,0.8487798]
[1746672785273,0.1599,98825.0,98824.0,0.9707798]
[1746672787080,0.1599,98825.0,98824.0,1.1387798]
[1746672788080,0.1599,98825.0,98824.0,0.9707798]
[1746672788281,0.1599,98825.0,98824.0,0.6807798]
[1746672788476,0.1599,98825.0,98824.0,0.7607798]
[1746672788671,0.1599,98825.0,98824.0,0.9807798]
[1746672789278,0.1599,98825.0,98824.0,0.9402898]
[1746672789473,0.3143,98825.0,98824.0,0.9402898]
[1746672789679,0.4737,98825.0,98824.0,0.2323698]
[1746672789972,0.3143,98825.0,98824.0,0.2323698]
[1746672790173,0.3143,98825.0,98824.0,0.6870698]
[1746672790377,0.1599,98825.0,98824.0,0.6870698]
[1746672792683,0.1599,98825.0,98824.0,0.3923698]
[1746672792983,0.3183,98825.0,98824.0,0.3923698]
[1746672793178,0.4863,98825.0,98824.0,0.3923698]
[1746672794383,0.4863,98825.0,98824.0,0.3518698]
[1746672797575,0.8471,98825.0,98824.0,0.19]
[1746672798175,0.8471,98825.0,98824.0,0.1495]
[1746672798376,0.4863,98825.0,98824.0,0.3518698]
[1746672799981,0.4863,98825.0,98824.0,0.3528698]
[1746672800186,0.4863,98825.0,98824.0,0.3538698]
[1746672800977,0.4863,98825.0,98824.0,0.3558698]
[1746672801287,0.4863,98825.0,98824.0,0.3538698]
[1746672801585,0.6377,98825.0,98824.0,0.3548698]
[1746672803388,0.6377,98825.0,98824.0,0.3538698]
[1746672803588,0.6377,98825.0,98824.0,0.3548698]
[1746672803780,0.6377,98825.0,98824.0,0.3538698]
[1746672809203,0.6377,98825.0,98824.0,0.3133698]
[1746672810597,0.4863,98825.0,98824.0,0.3133698]
[1746672810893,0.13309701,98825.0,98824.0,0.6212698]
[1746672811101,0.139,98842.0,98841.0,0.202335]
[1746672811300,0.139,98842.0,98841.0,0.905765]
[1746672812007,0.139,98842.0,98841.0,1.052665]
[1746672812196,0.141,98842.0,98841.0,1.012175]
[1746672812905,0.143,98842.0,98841.0,1.012175]
[1746672813794,0.141,98842.0,98841.0,1.012175]
[1746672814001,0.139,98842.0,98841.0,0.738175]
[1746672814404,0.139,98842.0,98841.0,0.74580273]
[1746672815009,0.139,98842.0,98841.0,0.93580273]
[1746672815704,0.139,98842.0,98841.0,1.08700273]
[1746672818106,0.139,98842.0,98841.0,0.93580273]
[1746672823009,0.139,98842.0,98841.0,0.57500273]
[1746672823213,0.139,98842.0,98841.0,0.81444773]
[1746672823613,0.1605,98844.0,98841.0,0.86503103]
[1746672823802,0.1605,98844.0,98843.0,0.2023309]
[1746672824010,0.1605,98844.0,98843.0,0.4623309]
[1746672824201,0.1605,98844.0,98843.0,0.7864309]
[1746672825006,0.6909,98849.0,98844.0,0.2023289]
[1746672825212,0.1571,98847.0,98846.0,0.2023248]
[1746672825411,0.1571,98847.0,98846.0,0.4323248]
[1746672826608,0.1571,98847.0,98844.0,0.1561]
[1746672826804,0.1571,98847.0,98846.0,0.2043248]
[1746672827005,0.1571,98847.0,98846.0,0.2153248]
[1746672828112,0.1571,98847.0,98846.0,0.2053248]
[1746672828314,0.3251,98847.0,98846.0,0.2053248]
[1746672828911,0.3251,98847.0,98846.0,0.2033248]
[1746672829805,0.3251,98847.0,98846.0,0.2053248]
[1746672832213,0.5274227,98847.0,98846.0,0.003]
[1746672832410,0.202333,98842.0,98838.0,0.08308]
[1746672832607,0.303505,98842.0,98841.0,0.01]
[1746672832814,0.2023514,98833.0,98832.0,0.08308]
[1746672833013,0.5631514,98833.0,98832.0,0.08308]
[1746672833310,0.7311514,98833.0,98832.0,0.04258]
[1746672834312,0.5288,98833.0,98832.0,0.3826952]
[1746672834712,0.168,98833.0,98832.0,0.2526952]
[1746672835418,0.168,98833.0,98832.0,0.2141152]
[1746672836115,0.168,98833.0,98832.0,0.0147618]
[1746672836116,0.3703514,98833.0,98832.0,0.0147618]
[1746672836318,0.0505904,98828.0,98823.0,0.08308]
[1746672836619,0.3604637,98827.0,98826.0,0.1]
[1746672837211,0.5284637,98827.0,98826.0,0.1]
[1746672837418,0.3261,98827.0,98826.0,0.3023657]
[1746672837619,0.5284637,98827.0,98826.0,0.2023657]
[1746672837820,0.202366,98826.0,98823.0,0.08808]
[1746672838118,0.370366,98826.0,98825.0,0.1]
[1746672838320,0.530166,98826.0,98825.0,0.1]
[1746672839814,0.530166,98826.0,98825.0,0.103]
[1746672840925,0.530166,98826.0,98825.0,0.108]
[1746672843517,0.3278,98826.0,98825.0,0.3103678]
[1746672843718,0.5301657,98826.0,98825.0,0.108]
[1746672844636,0.3278,98826.0,98825.0,0.3103678]
[1746672845124,0.1598,98826.0,98825.0,0.3203678]
[1746672845326,0.6909,98841.0,98833.0,0.0505878]
[1746672845528,0.0505771,98854.0,98846.0,0.2023235]
[1746672845828,0.1605,98850.0,98847.0,0.2908]
[1746672846020,0.1605,98850.0,98847.0,0.4931215]
[1746672846219,0.1605,98850.0,98849.0,0.1618286]
[1746672847227,0.1605,98850.0,98849.0,0.2788386]
[1746672848320,0.1604,98850.0,98849.0,0.2788386]
[1746672849019,0.1614,98850.0,98849.0,0.2788386]
[1746672854126,0.1614,98850.0,98849.0,0.1575]
[1746672854324,0.2023289,98844.0,98820.0,0.3608]
[1746672854531,0.2023289,98844.0,98843.0,0.09212]
[1746672855230,0.5252289,98844.0,98843.0,0.05163]
[1746672858330,0.5252289,98844.0,98843.0,0.04163]
[1746672859429,0.5252289,98844.0,98843.0,0.00114]
[1746672864437,1.0138,98844.0,98821.0,0.09111832]
[1746672864726,0.2023739,98822.0,98821.0,0.12111832]
[1746672865236,0.3703739,98822.0,98821.0,0.08061832]
[1746672865529,0.3703739,98822.0,98821.0,0.03]
[1746672865723,0.6733739,98822.0,98821.0,0.03]
[1746672865924,0.6733739,98822.0,98821.0,0.035]
[1746672866526,0.6733739,98822.0,98821.0,0.005]
[1746672867231,0.2023821,98818.0,98817.0,0.0058063]
[1746672867439,0.2023862,98816.0,98815.0,0.29203167]
[1746672867733,0.2023862,98816.0,98815.0,0.30203167]
[1746672868032,0.2023862,98816.0,98815.0,0.09964337]
[1746672868234,0.6650862,98816.0,98815.0,0.09964337]
[1746672868527,0.6650862,98816.0,98815.0,0.10564337]
[1746672868924,0.6650862,98816.0,98815.0,0.11164337]
[1746672869124,0.6650862,98816.0,98815.0,0.14719105]
[1746672870235,0.6650862,98816.0,98815.0,0.10669105]
[1746672870730,0.6650862,98816.0,98815.0,0.06511105]
[1746672871230,0.6650862,98816.0,98815.0,0.02461105]
[1746672871428,0.6650862,98816.0,98807.0,0.0015181]
[1746672871429,0.2024026,98808.0,98807.0,0.0015181]
[1746672872025,0.4938026,98808.0,98807.0,0.0015181]
[1746672872224,0.2024108,98804.0,98803.0,0.30214324]
[1746672872425,0.2024108,98804.0,98803.0,0.44214324]
[1746672873121,0.2964,98808.0,98804.0,0.2024107]
[1746672873331,0.2964,98808.0,98804.0,0.3424107]
[1746672873531,0.3420009,98808.0,98805.0,0.1542]
[1746672874124,0.5100009,98808.0,98805.0,0.1542]
[1746672874530,0.2024067,98806.0,98805.0,0.1542]
[1746672874942,0.2024067,98806.0,98805.0,0.1552]
[1746672875130,0.3704067,98806.0,98805.0,0.19126302]
[1746672875729,0.3844067,98806.0,98805.0,0.35619481]
[1746672876228,0.2164067,98806.0,98805.0,0.35619481]
[1746672877532,0.2164067,98806.0,98805.0,0.20199481]
[1746672877933,0.2163067,98806.0,98805.0,0.20199481]
[1746672878135,0.3843067,98806.0,98805.0,0.04569481]
[1746672880036,0.3843067,98806.0,98805.0,0.03806302]
[1746672881643,0.3844067,98806.0,98805.0,0.03806302]
[1746672882448,0.3844067,98806.0,98805.0,0.04552833]
[1746672882644,0.7452067,98806.0,98805.0,0.002]
[1746672883235,0.2024087,98805.0,98804.0,0.12159]
[1746672883435,0.2024087,98805.0,98804.0,0.13159]
[1746672883436,0.5147087,98805.0,98804.0,0.13159]
[1746672883635,0.5147087,98805.0,98804.0,0.16762734]
[1746672884340,0.5187087,98805.0,98804.0,0.16762734]
[1746672885147,0.4853,98805.0,98804.0,0.16762734]
[1746672885445,0.6927087,98805.0,98804.0,0.32382734]
[1746672885746,0.6927087,98805.0,98804.0,0.16862734]
[1746672885945,0.6877087,98805.0,98804.0,0.04603734]
[1746672886147,0.6937087,98805.0,98804.0,0.04703734]
[1746672886643,0.0506053,98799.0,98788.0,0.08196]
[1746672886845,0.0506109,98788.0,98784.0,0.3083]
[1746672887155,0.2024497,98785.0,98784.0,0.3083]
[1746672887444,0.2024497,98785.0,98784.0,0.18354528]
[1746672887649,0.2024497,98785.0,98784.0,0.19102122]
[1746672887839,0.2024497,98785.0,98784.0,0.04282122]
[1746672888036,0.2024518,98784.0,98779.0,0.3608]
[1746672888242,0.5208518,98784.0,98783.0,0.03619593]
[1746672888439,0.20246,98780.0,98779.0,0.3608]
[1746672889147,0.37046,98780.0,98779.0,0.3608]
[1746672889351,0.2024661,98777.0,98776.0,0.2024668]
[1746672889546,0.2024661,98777.0,98776.0,0.2324668]
[1746672890150,0.3704661,98777.0,98776.0,0.2324668]
[1746672890341,0.3704661,98777.0,98776.0,0.06593887]
[1746672890945,0.0506191,98772.0,98737.0,0.36231918]
[1746672891145,0.5632887,98766.0,98762.0,0.00773923]
[1746672891349,0.3608,98766.0,98749.0,0.22846]
[1746672891642,0.2025215,98750.0,98749.0,0.00776657]
[1746672891849,0.2025338,98744.0,98743.0,0.1512]
[1746672892146,0.2025338,98744.0,98743.0,0.2512]
[1746672892449,0.2025338,98744.0,98743.0,0.24615824]
[1746672893142,0.168,98744.0,98743.0,0.50677512]
[1746672893741,0.169,98744.0,98743.0,0.50677512]
[1746672893937,0.169,98744.0,98743.0,0.45614162]
[1746672894343,0.001,98744.0,98743.0,0.45614162]
[1746672894648,0.002,98744.0,98743.0,0.46114162]
[1746672894850,0.2045338,98744.0,98743.0,0.25860582]
[1746672895051,0.002,98744.0,98743.0,0.41780582]
[1746672895247,0.002,98744.0,98743.0,0.62034162]
[1746672896155,0.002,98744.0,98743.0,0.87034162]
[1746672896354,0.002,98744.0,98743.0,0.82981162]
[1746672896850,0.00751442,98787.0,98743.0,0.82981162]
[1746672896851,0.1537,98764.0,98763.0,0.2024948]
[1746672897051,0.1537,98764.0,98763.0,0.5444948]
[1746672897247,0.1446,98769.0,98763.0,0.428]
[1746672897459,0.1537,98768.0,98767.0,0.2024854]
[1746672897653,0.1537,98768.0,98767.0,0.4424854]
[1746672898052,0.3608,98775.0,98769.0,0.2024825]
[1746672898256,0.1537,98774.0,98769.0,0.4019625]
[1746672899452,0.00351964,98770.0,98769.0,0.4019625]
[1746672899854,0.00351964,98770.0,98769.0,0.7627625]
[1746672900041,0.00351964,98770.0,98769.0,0.9307625]
[1746672900246,0.00351964,98770.0,98769.0,1.1853425]
[1746672900450,0.00351964,98770.0,98769.0,1.2672625]
[1746672900949,0.00351964,98770.0,98769.0,1.0272625]
[1746672901157,0.00551964,98770.0,98769.0,0.8792625]
[1746672901348,0.004,98770.0,98769.0,0.8792625]
[1746672901553,0.004,98770.0,98769.0,0.75782]
[1746672901743,0.004,98770.0,98769.0,0.46272]
[1746672902055,0.2064805,98770.0,98769.0,0.02]
[1746672902356,0.202486,98768.0,98763.0,0.2638944]
[1746672902551,0.202486,98768.0,98763.0,0.2738944]
[1746672902752,0.2986,98767.0,98763.0,0.2738944]
[1746672902955,0.2024928,98764.0,98763.0,0.0714]
[1746672903251,0.168,98764.0,98763.0,0.2024948]
[1746672905060,0.169,98764.0,98763.0,0.2024948]
[1746672907157,0.001,98764.0,98763.0,0.2024948]
[1746672908951,0.001,98764.0,98758.0,0.08192]
[1746672909153,0.3022,98763.0,98758.0,0.09192]
[1746672909353,0.202503,98759.0,98758.0,0.01]
[1746672910253,0.2025184,98752.0,98750.0,0.2025215]
[1746672910453,0.5086,98751.0,98750.0,0.2125215]
[1746672910654,0.8655194,98751.0,98750.0,0.01]
[1746672911651,0.8665194,98751.0,98750.0,0.01]
[1746672911850,0.3032,98751.0,98750.0,0.2125215]
[1746672912260,0.3032,98751.0,98750.0,0.01]
[1746672913363,0.3042,98751.0,98750.0,0.003]
[1746672913657,0.5067194,98751.0,98750.0,0.003]
[1746672914355,0.4722,98751.0,98750.0,0.003]
[1746672915153,0.3042,98751.0,98750.0,0.003]
[1746672917861,0.3042,98751.0,98750.0,0.2055215]
[1746672919462,0.3042,98751.0,98750.0,0.003]
[1746672921267,0.3042,98751.0,98748.0,0.1649948]
[1746672921467,0.3042,98751.0,98748.0,0.1749948]
[1746672921657,0.3042,98751.0,98749.0,0.202523]
[1746672922462,0.3042,98751.0,98750.0,0.2025215]
[1746672922866,0.3042,98751.0,98749.0,0.2025233]
[1746672923061,0.5067194,98751.0,98749.0,0.2025233]
[1746672923268,0.3042,98751.0,98748.0,0.002]
[1746672923461,0.2025235,98749.0,98748.0,0.012]
[1746672923657,0.2025235,98749.0,98748.0,0.01]
[1746672923859,0.5633235,98749.0,98748.0,0.01]
[1746672924169,0.7313235,98749.0,98748.0,0.01]
[1746672924563,0.7323235,98749.0,98748.0,0.012]
[1746672925560,0.7323235,98749.0,98748.0,0.002]
[1746672925757,0.7333235,98749.0,98748.0,0.002]
[1746672926368,0.2025391,98742.0,98740.0,0.08192]
[1746672926668,0.3123,98741.0,98740.0,0.294462]
[1746672926863,0.3014,98741.0,98740.0,0.294462]
[1746672927471,0.3014,98741.0,98740.0,0.611262]
[1746672927663,0.3014,98741.0,98740.0,0.35014387]
[1746672928363,0.3024,98741.0,98740.0,0.35014387]
[1746672929065,1.0337399,98741.0,98740.0,0.05168187]
[1746672929370,1.0347399,98741.0,98740.0,0.003]
[1746672930967,1.675011,98741.0,98719.0,0.1445]
[1746672931166,0.2024502,98736.0,98720.0,0.09172051]
[1746672931470,0.2025533,98735.0,98732.0,0.2025568]
[1746672931771,0.3073,98735.0,98733.0,0.360756]
[1746672931973,0.3073,98735.0,98733.0,0.670356]
[1746672932165,0.2025543,98734.0,98733.0,0.4678]
[1746672932370,0.2025543,98734.0,98733.0,0.3136]
[1746672932670,0.5089543,98734.0,98733.0,0.3136]
[1746672933070,0.5089543,98734.0,98733.0,0.1582]
[1746672933570,0.2025584,98732.0,98731.0,0.21016074]
[1746672933765,0.2025584,98732.0,98731.0,0.00760094]
[1746672933961,0.2025625,98730.0,98729.0,0.05084524]
[1746672934167,0.2025656,98729.0,98727.0,0.2025679]
[1746672934369,0.3099,98729.0,98726.0,0.0818]
[1746672934675,0.5124663,98729.0,98726.0,0.0818]
[1746672934873,0.2025671,98728.0,98726.0,0.2401]
[1746672935272,0.3099,98729.0,98726.0,0.2401]
[1746672935273,0.5124687,98727.0,98726.0,0.2401]
[1746672935468,0.5124687,98727.0,98726.0,0.29000309]
[1746672935669,0.5124687,98727.0,98726.0,0.29757516]
[1746672935871,0.5124687,98727.0,98726.0,0.13927516]
[1746672936264,0.5124687,98727.0,98726.0,0.09873516]
[1746672936865,0.5134687,98727.0,98726.0,0.09873516]
[1746672937377,0.5134687,98727.0,98726.0,0.05819516]
[1746672938173,0.5134687,98727.0,98726.0,0.05747516]
[1746672938371,0.3109,98727.0,98719.0,0.2025846]
[1746672938675,0.3625422,98727.0,98723.0,0.08184]
[1746672938875,0.3625422,98727.0,98724.0,0.3048]
[1746672939071,0.2025728,98725.0,98724.0,0.31235926]
[1746672940073,0.2025728,98725.0,98724.0,0.15635926]
[1746672940377,0.2025728,98725.0,98724.0,0.16635926]
[1746672940876,0.3119,98727.0,98724.0,0.16635926]
[1746672941179,0.3109,98727.0,98726.0,0.2025707]
[1746672941477,0.3109,98727.0,98726.0,0.3225707]
[1746672941478,0.3099,98727.0,98726.0,0.3225707]
[1746672941874,0.3099,98727.0,98726.0,0.4661707]
[1746672942069,0.3109,98727.0,98726.0,0.2636]
[1746672942377,0.3119,98727.0,98726.0,0.2636]
[1746672942891,0.3119,98727.0,98726.0,0.4661707]
[1746672943191,0.1587,98727.0,98726.0,0.6241707]
[1746672943379,0.1587,98727.0,98726.0,0.4216]
[1746672943380,0.1577,98727.0,98726.0,0.4216]
[1746672943584,0.1587,98727.0,98726.0,0.4216]
[1746672943991,0.1587,98727.0,98726.0,0.6241707]
[1746672944187,0.1587,98727.0,98726.0,0.5441707]
[1746672944489,0.6909,98741.0,98740.0,0.202542]
[1746672944697,0.4114305,98750.0,98735.0,0.2025522]
[1746672944698,0.151,98736.0,98735.0,0.2025522]
[1746672944991,0.151,98736.0,98735.0,0.3425522]
[1746672945192,0.151,98736.0,98735.0,0.5518622]
[1746672945393,0.151,98736.0,98735.0,0.8475622]
[1746672945987,0.001,98736.0,98735.0,0.8475622]
[1746672946586,0.003,98736.0,98735.0,0.8475622]
[1746672948092,0.003,98736.0,98735.0,0.6795622]
[1746672949791,0.2055502,98736.0,98735.0,0.22184]
[1746672950296,0.3735502,98736.0,98735.0,0.22184]
[1746672952193,0.3735502,98736.0,98735.0,0.1813]
[1746672952394,0.3735502,98736.0,98735.0,0.08184]
[1746672953498,0.37336564,98736.0,98735.0,0.08184]
[1746672956201,0.2025707,98726.0,98725.0,0.4021]
[1746672956503,0.5633707,98726.0,98725.0,0.01]
[1746672956897,0.66466271,98726.0,98725.0,0.01]
[1746672957194,0.202583,98720.0,98719.0,0.01908005]
[1746672957396,0.0506442,98724.0,98711.0,0.08184]
[1746672957397,0.2025994,98712.0,98711.0,0.08184]
[1746672957599,0.2025994,98712.0,98711.0,0.11184]
[1746672957796,0.2025994,98712.0,98711.0,0.16272067]
[1746672957996,0.2025994,98712.0,98711.0,0.08088067]
[1746672958197,0.3705994,98712.0,98711.0,0.04033067]
[1746672958397,0.6657994,98712.0,98711.0,0.01]
[1746672958598,0.6667994,98712.0,98711.0,0.011]
[1746672959098,0.6667994,98712.0,98711.0,0.0186982]
[1746672959297,0.6677994,98712.0,98711.0,0.0186982]
[1746672960202,0.4652,98712.0,98701.0,0.0135026]
[1746672960396,0.56342,98702.0,98701.0,0.01]
[1746672960704,0.3608,98702.0,98701.0,0.26454596]
[1746672960889,0.2874,98703.0,98702.0,0.20262]
[1746672961090,0.2874,98703.0,98702.0,0.11]
[1746672961304,0.4900179,98703.0,98702.0,0.11]
[1746672961497,0.20262,98702.0,98701.0,0.21338452]
[1746672961697,0.001,98702.0,98701.0,0.21338452]
[1746672961903,0.49102,98702.0,98701.0,0.21338452]
[1746672962107,0.49102,98702.0,98701.0,0.05948452]
[1746672962400,0.49102,98702.0,98700.0,0.1]
[1746672962401,0.202622,98701.0,98700.0,0.1]
[1746672962706,0.2874,98702.0,98700.0,0.1]
[1746672963006,0.301,98701.0,98700.0,0.30643989]
[1746672963203,0.503622,98701.0,98700.0,0.30643989]
[1746672964503,0.504622,98701.0,98700.0,0.30643989]
[1746672964807,0.504622,98701.0,98700.0,0.15880805]
[1746672965007,0.505622,98701.0,98700.0,0.15880805]
[1746672968911,0.303,98701.0,98700.0,0.37143215]
[1746672969211,0.1568,98701.0,98700.0,0.77253215]
[1746672969511,0.359422,98701.0,98700.0,0.16880805]
[1746672970315,0.359422,98701.0,98700.0,0.12825805]
[1746672971114,0.527422,98701.0,98700.0,0.12825805]
[1746672971317,0.888222,98701.0,98700.0,0.08013989]
[1746672972313,0.888222,98701.0,98700.0,0.03958989]
[1746672972508,0.888222,98701.0,98700.0,0.05987837]
[1746672973215,0.889222,98701.0,98700.0,0.05987837]
[1746672973915,0.889222,98701.0,98700.0,0.26250247]
[1746672973916,0.6866,98701.0,98700.0,0.26250247]
[1746672974108,0.5186,98701.0,98700.0,0.26250247]
[1746672974304,0.5186,98701.0,98700.0,0.34195247]
[1746672974508,0.721222,98701.0,98700.0,0.13932837]
[1746672974816,0.721222,98701.0,98700.0,0.34195247]
[1746672975011,0.5186,98701.0,98700.0,0.34195247]
[1746672976016,0.6649,98701.0,98700.0,0.34195247]
[1746672976711,0.5186,98701.0,98700.0,0.34195247]
[1746672977109,0.5186,98701.0,98700.0,0.49795247]
[1746672977303,0.5186,98701.0,98700.0,0.45740247]
[1746672977509,0.5186,98701.0,98700.0,0.50867916]
[1746672977911,0.1578,98701.0,98700.0,0.86947916]
[1746672978215,0.1578,98701.0,98700.0,0.91064916]
[1746672978417,0.1578,98701.0,98700.0,1.16242079]
[1746672979116,0.1578,98701.0,98700.0,1.33042079]
[1746672979318,0.1578,98701.0,98700.0,1.28987079]
[1746672980321,0.1578,98701.0,98700.0,1.12187079]
[1746672980710,0.1558,98701.0,98700.0,1.12187079]
[1746672981010,0.1578,98701.0,98700.0,1.12187079]
[1746672983715,0.1578,98701.0,98700.0,0.81187079]
[1746672984013,0.1588,98701.0,98700.0,0.50162079]
[1746672984615,0.1558,98701.0,98700.0,0.50162079]
[1746672984805,0.1588,98701.0,98700.0,0.50162079]
[1746672985010,0.1578,98701.0,98700.0,0.50162079]
[1746672985209,0.1588,98701.0,98700.0,0.50162079]
[1746672985618,0.1578,98701.0,98700.0,0.50162079]
[1746672985818,0.1588,98701.0,98700.0,0.50162079]
[1746672986113,0.361422,98701.0,98700.0,0.29899669]
[1746672986814,0.1588,98701.0,98700.0,0.29899669]
[1746672987010,0.1588,98701.0,98700.0,0.50162079]
[1746672987214,0.1588,98701.0,98700.0,0.45107079]
[1746672987416,0.1588,98701.0,98700.0,0.62107079]
[1746672988212,0.1588,98701.0,98700.0,0.74852079]
[1746672990322,0.1588,98701.0,98700.0,0.58052079]
[1746672990518,0.004,98701.0,98700.0,0.68183679]
[1746672990819,0.1398,98718.0,98717.0,0.2025892]
[1746672991015,0.1398,98718.0,98717.0,0.5341492]
[1746672991224,0.1398,98718.0,98717.0,0.6616092]
[1746672991410,0.1398,98718.0,98717.0,0.9519092]
[1746672991619,0.202561,98731.0,98718.0,0.0506466]
[1746672991823,0.5633594,98732.0,98728.0,0.2025666]
[1746672992115,0.202561,98731.0,98729.0,0.1392]
[1746672992315,0.00152009,98735.0,98729.0,0.22866]
[1746672992516,0.1398,98730.0,98729.0,0.4312246]
[1746672993112,0.1398,98730.0,98729.0,0.5992246]
[1746672993313,0.1398,98730.0,98729.0,0.5586846]
[1746672994118,0.1398,98730.0,98729.0,0.5596846]
[1746672994119,0.1418,98730.0,98729.0,0.5596846]
[1746672994320,0.1418,98730.0,98729.0,0.5191546]
[1746672994823,0.1428,98730.0,98729.0,0.5201546]
[1746672995321,0.1428,98730.0,98729.0,0.4796246]
[1746672996316,0.1418,98730.0,98729.0,0.5799126]
[1746672996521,0.00152009,98735.0,98734.0,0.2025543]
[1746672996723,0.00152009,98735.0,98734.0,0.5840743]
[1746672997117,0.00152009,98735.0,98734.0,0.7520743]
[1746672998123,0.00252009,98735.0,98734.0,0.7520743]
[1746672999025,0.00352009,98735.0,98734.0,0.7540743]
[1746672999722,0.15562009,98735.0,98734.0,0.7540743]
[1746673000518,0.15562009,98735.0,98734.0,0.7550743]
[1746673001026,0.15462009,98735.0,98734.0,0.7530743]
[1746673001213,0.15562009,98735.0,98734.0,0.7550743]
[1746673002713,0.15562009,98735.0,98734.0,0.7540743]
[1746673002914,0.15462009,98735.0,98734.0,0.7530743]
[1746673003430,0.15562009,98735.0,98734.0,0.7540743]
[1746673003726,0.29762009,98735.0,98734.0,0.7540743]
[1746673005129,0.29762009,98735.0,98734.0,0.5860743]
[1746673006127,0.29762009,98735.0,98734.0,0.072]
[1746673006325,0.6909,98747.0,98734.0,0.4648]
[1746673006527,0.13035233,98746.0,98745.0,0.2025317]
[1746673006826,0.13035233,98746.0,98745.0,0.4225317]
[1746673007120,0.13035233,98746.0,98745.0,0.5905317]
[1746673007326,0.13035233,98746.0,98745.0,0.5500017]
[1746673007926,0.13135233,98746.0,98745.0,0.5510017]
[1746673008226,0.13135233,98746.0,98745.0,0.5104717]
[1746673009128,0.13235233,98746.0,98745.0,0.5114717]
[1746673009927,0.13235233,98746.0,98745.0,0.5124717]
[1746673010329,0.13235233,98746.0,98745.0,0.5199289]
[1746673010628,0.13235233,98746.0,98745.0,0.57101628]
[1746673010827,0.13235233,98746.0,98745.0,0.65207628]
[1746673011024,0.13235233,98746.0,98745.0,0.44954458]
[1746673011529,0.13235233,98746.0,98745.0,0.65207628]
[1746673013231,0.13235233,98746.0,98745.0,0.48407628]
[1746673013434,0.33488203,98746.0,98745.0,0.28154458]
[1746673014022,0.13235233,98746.0,98735.0,0.02]
[1746673014224,0.3608,98736.0,98734.0,0.05098]
[1746673014430,0.6323522,98735.0,98734.0,0.08152]
[1746673015034,0.2863,98735.0,98722.0,0.15]
[1746673015237,0.2025563,98733.0,98732.0,0.08152]
[1746673015629,0.3502563,98733.0,98732.0,0.13176851]
[1746673016235,0.5182563,98733.0,98732.0,0.13176851]
[1746673016637,0.5192563,98733.0,98732.0,0.13176851]
[1746673017138,0.5202563,98733.0,98732.0,0.13176851]
[1746673018042,0.5232563,98733.0,98732.0,0.05784276]
[1746673018343,0.2025643,98730.0,98728.0,0.08152]
[1746673018640,0.1451,98729.0,98728.0,0.09152]
[1746673018837,0.3476646,98729.0,98728.0,0.09152]
[1746673019742,0.3486646,98729.0,98728.0,0.14196604]
[1746673020437,0.1461,98729.0,98728.0,0.14296604]
[1746673021343,0.1481,98729.0,98728.0,0.14296604]
[1746673021544,0.3506646,98729.0,98728.0,0.14296604]
[1746673022343,0.3506646,98729.0,98728.0,0.15039252]
[1746673022642,0.1481,98729.0,98728.0,0.15039252]
[1746673025344,0.1481,98729.0,98728.0,0.10985252]
[1746673025845,0.2916,98729.0,98728.0,0.10985252]
[1746673026846,0.4941646,98729.0,98728.0,0.10985252]
[1746673027043,0.2916,98729.0,98728.0,0.10985252]
[1746673028145,0.2916,98729.0,98728.0,0.25285252]
[1746673028650,0.4941646,98729.0,98728.0,0.10985252]
[1746673031161,0.6620646,98729.0,98728.0,0.10985252]
[1746673031664,0.4595,98729.0,98728.0,0.06887252]
[1746673031956,0.4595,98729.0,98728.0,0.27143912]
[1746673032157,0.2915,98729.0,98728.0,0.35275912]
[1746673032363,0.2915,98729.0,98728.0,0.59275912]
[1746673032566,0.2915,98729.0,98728.0,0.87075912]
[1746673032751,0.2915,98729.0,98728.0,0.29009252]
[1746673032956,0.2915,98729.0,98728.0,0.49265912]
[1746673033157,0.2915,98729.0,98728.0,0.66065912]
[1746673034063,0.2915,98729.0,98728.0,0.80845912]
[1746673036067,0.003,98729.0,98728.0,0.80845912]
[1746673036268,0.003,98729.0,98728.0,0.84991912]
[1746673038273,0.003,98729.0,98728.0,0.24955252]
[1746673038765,0.2055646,98729.0,98728.0,0.24955252]
[1746673039171,0.2055646,98729.0,98728.0,0.10965252]